[Event "7th Salamanca Festival 2024"]
[Site "Salamanca"]
[Date "2024.05.22"]
[Round "1.1"]
[White "Alekseenko, Kirill"]
[Black "Calzetta Ruiz, Monica"]
[Result "1-0"]
[ECO "B30"]
[WhiteElo "2679"]
[BlackElo "2244"]
[Annotator "TA"]
[PlyCount "43"]
[EventDate "2024.05.18"]
[EventType "tourn"]
[EventCountry "ESP"]
[SourceTitle "playchess.com"]
[Source "ChessBase"]
[SourceQuality "1"]
[TimeControl "2400+5"]

{[%evp 9,43,66,109,112,114,106,115,108,143,119,204,206,191,187,316,300,339,365,347,385,602,627,603,629,606,603,580,581,680,692,664,651,658,645,648,640]} 1. e4 {[%emt 0:00:25]} c5 {[%emt 0:00:05]} 2. Nf3 {[%emt 0:00:11]} Nc6 {[%emt 0:00:04]} 3. Bb5 {[%emt 0:00:28]} g5 {[%emt 0:00:08]} 4. h3 {[%emt 0:01:20]} Nf6 {[%emt 0:00:09]} 5. Nc3 {[%emt 0:00:54]} Rg8 {[%emt 0:00:18]} 6. d3 {[%emt 0:02:04]} g4 {[%emt 0:04:36]} 7. hxg4 {[%emt 0:00:08]} Nxg4 {[%emt 0:00:07]} 8. Bf4 {[%emt 0:01:06] White is more active. White is better.} Qa5 {[%emt 0:14:41]} 9. Qd2 {[%emt 0:01:50]} e6 {[%emt 0:00:26] Against Nd5} (9... d6 $16 10. Rxh7 Nf6) 10. Bxc6 $18 {[%emt 0:03:49]} (10. Rxh7 Nf6) 10... bxc6 {[%emt 0:01:40]} 11. e5 {[%emt 0:00:03][%cal Be4e5,Be5f6][%mdl 32]} Rb8 {[%emt 0:01:50]} (11... h6 $142 12. Nh2 f5 13. Nxg4 Rxg4 14. Bxh6 c4) 12. Ne4 {[%emt 0:00:18]} (12. Rxh7 Rxb2 13. Ne4 Qa4) 12... Qxd2+ {[%emt 0:00:58]} 13. Nfxd2 {[%emt 0:00:15] Excellent horsemanship.} ({Don't play} 13. Kxd2 Rxb2 14. Rxh7 c4 15. dxc4 Bb4+ 16. Kd3 (16. Kc1 Ba3 $18) 16... Be7) 13... Rxb2 {[%emt 0:00:45]} 14. f3 {[%emt 0:00:08]} f5 {[%emt 0:03:10]} (14... d5 $142 15. exd6 f5 16. fxg4 (16. Nxc5 e5 $16) 16... fxe4 17. Nxe4 Bg7) 15. exf6 {[%emt 0:00:40] White is clearly winning.} d5 {[%emt 0:00:04][%cal Bd7d5,Bd5e4][%mdl 32]} 16. Rxh7 {[%emt 0:00:32] [#] Intending f7+ and mate.} Rb7 {[%emt 0:05:25]} 17. Rxb7 {[%emt 0:00:06]} Bxb7 {[%emt 0:00:01]} 18. Rb1 {[%emt 0:00:04]} dxe4 {[%emt 0:00:35]} 19. f7+ {[%emt 0:00:28]} Kxf7 {[%emt 0:00:07]} 20. Rxb7+ {[%emt 0:00:03]} Kg6 {[%emt 0:05:09]} 21. fxg4 {[%emt 0:00:11]} exd3 {[%emt 0:00:02]} 22. cxd3 {[%emt 0:00:22] White took control after the opening.   Weighted Error Value: White=0.02 (flawless) /Black=0.53.  Mistake:       	---       	Black=3      Inaccurate:     	---       	Black=1      OK:         	White=6     	Black=2      Best:        	White=1     	Black=1} 1-0

[Event "7th Salamanca Festival 2024"]
[Site "Salamanca"]
[Date "2024.05.22"]
[Round "1.2"]
[White "Salimova, Nurgyul"]
[Black "Adams, Michael"]
[Result "1-0"]
[ECO "D02"]
[WhiteElo "2436"]
[BlackElo "2677"]
[Annotator "TA"]
[PlyCount "67"]
[EventDate "2024.05.18"]
[EventType "tourn"]
[EventCountry "ESP"]
[SourceTitle "playchess.com"]
[Source "ChessBase"]
[SourceQuality "1"]
[TimeControl "2400+5"]

{[%evp 10,67,12,14,19,10,25,14,22,22,22,26,28,21,32,20,37,37,35,39,52,52,84,67,119,0,0,-16,0,0,133,135,124,122,135,95,329,337,788,868,837,827,873,860,29974,29975,29989,29990,29990,29991,29991,29992,29992,29992,29992,29992,29992,29993,29993,29994]} 1. d4 {[%emt 0:00:04]} Nf6 {[%emt 0:00:02]} 2. Bf4 {[%emt 0:00:09]} d5 {[%emt 0:00:10]} 3. e3 {[%emt 0:00:10]} e6 {[%emt 0:00:05]} 4. Nf3 {[%emt 0:00:54]} Bd6 {[%emt 0:00:06]} 5. Bxd6 {[%emt 0:00:37]} Qxd6 {[%emt 0:01:59]} 6. c4 {[%emt 0:00:44][%cal Bc2c4,Bc4c5][%mdl 32]} O-O {[%emt 0:01:25]} 7. Nc3 {[%emt 0:00:16]} Rd8 {[%emt 0:00:13]} 8. Rc1 {[%emt 0:03:57]} a6 {[%emt 0:02:25] The position is equal.} 9. c5 {[%emt 0:04:56]} Qe7 {[%emt 0:00:20]} 10. Ne5 {[%emt 0:05:02]} Nfd7 {[%emt 0:01:05]} 11. f4 {[%emt 0:00:41]} Nxe5 {[%emt 0:02:01]} 12. fxe5 {[%emt 0:00:01]} Qh4+ {[%emt 0:02:33]} 13. g3 {[%emt 0:01:22]} Qh6 {[%emt 0:00:01]} 14. Qf3 {[%emt 0:01:24]} Nc6 {[%emt 0:09:45]} 15. Qf4 {[%emt 0:01:43]} g5 {[%emt 0:02:01]} 16. Qf3 {[%emt 0:02:16] Threatens to win with h4.} f6 {[%emt 0:01:38]} 17. h4 {[%emt 0:10:53]} (17. exf6 Rf8 $14) (17. Qxf6 $16 Qxf6 18. exf6) 17... fxe5 {[%emt 0:02:20]} 18. hxg5 {[%emt 0:00:02]} Qxg5 {[%emt 0:01:31] Strongly threatening ...Rf8.} 19. Rh5 {[%emt 0:01:16]} Qg6 {[%emt 0:01:17] [#]} (19... Qg7 $11 {keeps the balance.} 20. Bd3 e4 (20... exd4 $2 21. Rxh7 Ne5 22. Rxg7+ $18) 21. Nxe4 dxe4 22. Qxe4 Qg6 (22... Qxg3+ $2 23. Kd2 $18)) 20. Bd3 $1 $16 {[%emt 0:01:22][%mdl 512] The board is on fire.} e4 {[%emt 0:02:21] [#]} (20... Qxd3 $2 21. Rg5+ $18 (21. dxe5 $2 Qg6 $19) (21. dxe5 $2 Qg6 $19)) 21. Nxe4 {[%emt 0:00:18][%mdl 512]} Rf8 {[%emt 0:00:24] Wards off Nf6+} (21... dxe4 22. Bxe4 Rf8 23. Qh1 (23. Qxf8+ Kxf8 24. Bxg6 hxg6 $14) 23... Qxg3+ 24. Kd1) 22. Qh1 $36 {[%emt 0:01:35][%mdl 2048] White is on the roll. White is more active.} dxe4 $2 {[%emt 0:03:11] Loses the game.} (22... Nb4 $16 {is a better defense.} 23. Rg5 (23. Nf6+ $2 Qxf6 $19) 23... Nxd3+ 24. Kd2 dxe4 25. Rxg6+ hxg6) 23. Bxe4 $18 {[%emt 0:00:04]} Qxg3+ {[%emt 0:00:29]} (23... Rf5 24. Bxf5 exf5) 24. Kd2 {[%emt 0:00:21][%cal Oh5g5,Be1d2,Bd2d3,Bd3c4,Bc4b3][%mdl 32] White wants to mate with Rg5+!} Qf2+ {[%emt 0:00:02]} 25. Kd3 {[%emt 0:00:30]} Nb4+ {[%emt 0:02:26]} 26. Kc4 {[%emt 0:00:04]} Qe2+ {[%emt 0:00:01]} 27. Kb3 {[%emt 0:00:30] White mates.} Rf2 {[%emt 0:01:57]} 28. Rg5+ {[%emt 0:00:32]} (28. Kxb4 Qxb2+ 29. Kc4 Qxa2+ 30. Kc3 Qd2+ 31. Kc4 Qa2+ 32. Kc3 Qb2+ 33. Kc4 Qb5+ 34. Kc3 Qb2+ 35. Kc4 Qe2+ 36. Bd3 Qa2+ 37. Kc3 Qb2+ 38. Kc4 h6 39. Rg1+ (39. Rxh6 Qa2+ 40. Kc3 Qb2+ 41. Kc4 Qa2+ 42. Kc3 Qa5+ 43. Kc4 Qa4+ 44. Kc3 Qa5+ 45. Kb3 Qa2+ 46. Kc3 $11) 39... Kf7 $11) 28... Kf8 {[%emt 0:00:01][%cal Bg8f8,Bf8e7,Be7e8][%mdl 32]} 29. Qh6+ {[%emt 0:00:12]} (29. Kxb4 $2 Qxb2+ 30. Kc4 Qe2+ (30... Qxa2+ $2 31. Kc3 $19) 31. Kb3 Qxa2+ (31... Qxe3+ $2 32. Rc3 $19) 32. Kc3 Qd2+ 33. Kc4 Qe2+ (33... Qxe3 34. Qh6+ Ke8 35. Rg8+ Ke7 36. Qxh7+ Rf7 37. Qh4+) 34. Bd3 Qa2+ (34... Qxe3 35. Qh6+ Ke8 36. Rg8+ Ke7 37. Qxh7+ Rf7 38. Qh4+) 35. Kc3 Qa3+ (35... Qd2+ 36. Kc4 $15) 36. Kc4 b5+ (36... Qa2+ 37. Kc3 $19) 37. cxb6 cxb6 $19) 29... Ke7 {[%emt 0:00:18]} 30. Rg7+ {[%emt 0:00:11]} (30. Kxb4 {is a self mate.} Qxb2+ 31. Kc4 Qxc1+) 30... Rf7 {[%emt 0:00:01]} 31. Qg5+ {[%emt 0:00:12]} (31. Kxb4 $2 Qxb2+ 32. Kc4 Qxc1+ $19) 31... Ke8 {[%emt 0:00:01]} 32. Rg8+ {[%emt 0:00:08]} (32. Kxb4 $2 Qxb2+ 33. Kc4 Qxc1+ $19) 32... Rf8 {[%emt 0:00:01]} 33. Rxf8+ {[%emt 0:00:11]} (33. Kxb4 $2 {loses.} Qxb2+ 34. Kc4 Qxc1+ $19) 33... Kxf8 {[%emt 0:00:01]} 34. Rg1 {[%emt 0:00:11] Weighted Error Value: White=0.10 (very precise) /Black=0.71.  Loses game:     	---       	Black=1      Mistake:       	White=1     	Black=3      Inaccurate:     	---       	Black=1      OK:         	White=8     	Black=4      Best:        	White=3     	Black=1      Brilliant:      	White=2     	---} (34. Kxb4 $2 {perishes.} Qxb2+ 35. Kc4 Qxc1+ $19) 1-0

[Event "7th Salamanca Festival 2024"]
[Site "Salamanca"]
[Date "2024.05.22"]
[Round "1.3"]
[White "Ponomariov, Ruslan"]
[Black "Iturrizaga Bonelli, Eduardo"]
[Result "0-1"]
[ECO "E19"]
[WhiteElo "2646"]
[BlackElo "2591"]
[Annotator "RC"]
[PlyCount "143"]
[EventDate "2024.05.18"]
[EventType "tourn"]
[EventCountry "ESP"]
[SourceTitle "playchess.com"]
[Source "ChessBase"]
[SourceQuality "1"]
[TimeControl "2400+5"]

1. Nf3 {[%emt 0:00:03]} Nf6 {[%emt 0:00:19]} 2. c4 {[%emt 0:01:03]} b6 {[%emt 0:01:04]} 3. g3 {[%emt 0:00:32]} Bb7 {[%emt 0:00:03]} 4. Bg2 {[%emt 0:00:11]} e6 {[%emt 0:00:12]} 5. O-O {[%emt 0:00:07]} Be7 {[%emt 0:00:03]} 6. Nc3 {[%emt 0:01:01]} O-O {[%emt 0:00:21]} 7. d4 {[%emt 0:02:27]} Ne4 {[%emt 0:00:10]} 8. Qc2 {[%emt 0:00:20]} Nxc3 {[%emt 0:00:32]} 9. Qxc3 {[%emt 0:00:01]} Be4 {[%emt 0:00:22]} 10. Rd1 {[%emt 0:00:43]} d6 {[%emt 0:01:07]} 11. Qe3 {[%emt 0:02:03]} Bb7 {[%emt 0:00:46]} 12. Qd3 {[%emt 0:01:47]} Qc8 {[%emt 0:04:00]} 13. d5 {[%emt 0:02:22]} e5 {[%emt 0:00:17]} 14. e4 {[%emt 0:00:04]} a5 {[%emt 0:00:05]} 15. Be3 {[%emt 0:00:34]} Na6 {[%emt 0:00:33]} 16. b3 {[%emt 0:00:46]} Qg4 {[%emt 0:02:31]} 17. Nd2 {[%emt 0:03:07]} Bc8 {[%emt 0:00:50]} 18. a3 {[%emt 0:01:42]} f5 {[%emt 0:02:41]} 19. exf5 {[%emt 0:01:07]} Bxf5 {[%emt 0:00:01]} 20. Be4 {[%emt 0:00:02]} g6 {[%emt 0:00:01]} 21. f3 {[%emt 0:01:16]} Qh3 {[%emt 0:00:07]} 22. Qe2 {[%emt 0:07:21]} Nc5 {[%emt 0:05:56]} 23. Qg2 {[%emt 0:00:05]} Kg7 {[%emt 0:01:28]} 24. Rab1 {[%emt 0:03:03]} h5 {[%emt 0:01:17]} 25. Rf1 {[%emt 0:00:27]} Rf7 {[%emt 0:04:21]} 26. Bxf5 {[%emt 0:00:12]} Qxg2+ {[%emt 0:01:06]} 27. Kxg2 {[%emt 0:00:02]} gxf5 {[%emt 0:00:01]} 28. b4 {[%emt 0:01:07]} Nd7 {[%emt 0:00:01]} 29. f4 {[%emt 0:01:31]} Kg6 {[%emt 0:02:04]} 30. Nf3 {[%emt 0:00:29]} axb4 {[%emt 0:01:08]} 31. axb4 {[%emt 0:00:01]} Ra2+ {[%emt 0:00:01]} 32. Rf2 {[%emt 0:00:26]} Ra3 {[%emt 0:00:02]} 33. Re2 {[%emt 0:00:55]} Bf6 {[%emt 0:00:46]} 34. fxe5 {[%emt 0:01:09]} dxe5 {[%emt 0:00:56]} 35. Nd2 {[%emt 0:02:52]} e4 {[%emt 0:00:35]} 36. Rb3 {[%emt 0:00:13]} Ra1 {[%emt 0:00:56]} 37. Rb1 {[%emt 0:00:20]} Ra4 {[%emt 0:00:42]} 38. c5 {[%emt 0:00:20]} b5 {[%emt 0:00:33]} 39. Bf4 {[%emt 0:00:53]} Ne5 {[%emt 0:00:01]} 40. Nf1 {[%emt 0:00:03]} Nd3 {[%emt 0:00:30]} 41. Ne3 {[%emt 0:00:06]} Bd4 {[%emt 0:01:02]} 42. Nc2 {[%emt 0:00:13]} Bc3 {[%emt 0:00:02]} 43. Rb3 {[%emt 0:00:02]} Bxb4 {[%emt 0:00:55]} 44. Nxb4 {[%emt 0:00:08]} Rxb4 {[%emt 0:00:01]} 45. Rxb4 {[%emt 0:00:04]} Nxb4 {[%emt 0:00:01]} 46. d6 {[%emt 0:00:04]} c6 {[%emt 0:00:14]} 47. Rb2 {[%emt 0:00:14]} Nd3 {[%emt 0:00:12]} 48. Ra2 {[%emt 0:00:01]} Nxc5 {[%emt 0:01:32]} 49. Rc2 {[%emt 0:00:01]} Nd3 {[%emt 0:00:01]} 50. Rxc6 {[%emt 0:00:01]} Rd7 {[%emt 0:01:08]} 51. Rb6 {[%emt 0:00:08]} b4 {[%emt 0:00:06]} 52. Bd2 {[%emt 0:00:05]} Kf6 {[%emt 0:00:14]} 53. Kf1 {[%emt 0:00:19]} Ke6 {[%emt 0:00:08]} 54. Bxb4 {[%emt 0:00:03]} Nxb4 {[%emt 0:00:02]} 55. Rxb4 {[%emt 0:00:01]} Rxd6 {[%emt 0:00:01]} 56. Ke2 {[%emt 0:00:03]} Ra6 {[%emt 0:00:03]} 57. Ke3 {[%emt 0:00:18]} Ra2 {[%emt 0:00:28]} 58. Rb6+ {[%emt 0:00:01]} Ke5 {[%emt 0:00:01]} 59. Rb5+ {[%emt 0:00:01]} Kf6 {[%emt 0:00:01]} 60. h3 {[%emt 0:00:17]} Ra3+ {[%emt 0:00:06]} 61. Kf2 {[%emt 0:00:01]} h4 {[%emt 0:00:14]} 62. g4 {[%emt 0:00:03]} Rf3+ {[%emt 0:00:02]} 63. Ke2 {[%emt 0:00:10]} f4 {[%emt 0:00:07]} 64. Rf5+ {[%emt 0:00:06]} Ke6 {[%emt 0:00:01]} 65. Kd2 {[%emt 0:00:06]} Rd3+ {[%emt 0:00:02]} 66. Ke1 {[%emt 0:00:01]} f3 {[%emt 0:00:02]} 67. Rf8 {[%emt 0:00:07]} Ke5 {[%emt 0:00:08]} 68. g5 {[%emt 0:00:02]} Rd6 {[%emt 0:00:03]} 69. Kf2 {[%emt 0:00:11]} Rd2+ {[%emt 0:00:01]} 70. Kf1 {[%emt 0:00:01]} Rg2 {[%emt 0:00:01]} 71. Rg8 {[%emt 0:00:06]} e3 {[%emt 0:00:14]} 72. Re8+ {[%emt 0:00:07]} 0-1

[Event "7th Salamanca Festival 2024"]
[Site "Salamanca"]
[Date "2024.05.22"]
[Round "1.4"]
[White "Paehtz, Elisabeth"]
[Black "Muzychuk, Mariya"]
[Result "1-0"]
[ECO "D02"]
[WhiteElo "2457"]
[BlackElo "2510"]
[Annotator "TA"]
[PlyCount "108"]
[EventDate "2024.05.18"]
[EventType "tourn"]
[EventCountry "ESP"]
[SourceTitle "playchess.com"]
[Source "ChessBase"]
[SourceQuality "1"]
[TimeControl "2400+5"]

{[%evp 9,108,0,12,-1,8,7,14,14,29,28,52,55,58,61,55,52,56,49,52,35,39,36,28,37,37,29,68,71,89,43,67,70,82,76,83,73,91,60,59,56,83,85,82,0,47,28,31,22,31,11,13,12,15,0,0,0,0,0,14,0,0,0,0,0,0,0,0,0,0,0,0,0,0,0,0,0,9,9,9,10,10,10,10,16,16,17,29955,0,29957,29957,29958,8,29958,29958,29965,29966,29965,29965,29977,29978,29993]} 1. d4 {[%emt 0:00:02]} Nf6 {[%emt 0:00:01]} 2. Nf3 {[%emt 0:00:02]} d5 {[%emt 0:00:01]} 3. c3 {[%emt 0:00:01]} e6 {[%emt 0:00:30]} 4. Bf4 {[%emt 0:00:02]} Bd6 {[%emt 0:00:11]} 5. e3 {[%emt 0:00:02][%cal Be2e3,Be3f4][%mdl 32]} c5 {[%emt 0:00:40]} 6. Nbd2 {[%emt 0:00:07]} Bxf4 {[%emt 0:02:42]} 7. exf4 {[%emt 0:00:01]} Qd6 {[%emt 0:00:01]} 8. g3 {[%emt 0:02:48] The position is equal.} cxd4 {[%emt 0:00:21]} 9. Nxd4 {[%emt 0:00:01]} e5 {[%emt 0:00:20]} 10. Nb5 {[%emt 0:02:17]} Qe7 {[%emt 0:02:56]} 11. fxe5 {[%emt 0:00:02]} Qxe5+ {[%emt 0:01:26]} 12. Qe2 {[%emt 0:00:01]} Qxe2+ {[%emt 0:01:17]} 13. Bxe2 {[%emt 0:00:02]} Kd7 {[%emt 0:01:33] Inhibits Nc7.} 14. O-O-O {[%emt 0:00:34]} a6 {[%emt 0:00:20] Repels c4} 15. Nd4 {[%emt 0:00:04][%cal Bb5d4,Bd4c2,Bc2e3][%mdl 32]} Nc6 {[%emt 0:00:19]} 16. N2b3 {[%emt 0:00:44]} Ne4 {[%emt 0:03:32][%cal Bf6e4,Be4d6,Bd6f5][%mdl 32]} 17. Nc2 {[%emt 0:03:56]} Ne7 {[%emt 0:08:56]} 18. Rhf1 {[%emt 0:00:38]} Kc7 {[%emt 0:00:15]} 19. f3 {[%emt 0:00:33]} ({White should try} 19. Bf3 $16) 19... Nd6 {[%emt 0:00:21]} 20. Ne3 {[%emt 0:00:23]} Be6 {[%emt 0:00:09]} 21. f4 {[%emt 0:03:03]} Rad8 {[%emt 0:00:12]} 22. Bf3 {[%emt 0:01:52][%cal Re3d5]} Ndf5 {[%emt 0:02:36]} 23. Nc2 {[%emt 0:01:59]} h5 {[%emt 0:00:25]} 24. Rfe1 {[%emt 0:00:06]} Nc6 {[%emt 0:01:01]} 25. Nc5 {[%emt 0:00:36]} Rd6 {[%emt 0:00:13]} 26. Nb3 {[%emt 0:01:10] White has more active pieces.} (26. b4 $16) 26... g6 {[%emt 0:00:33]} (26... Rdd8 $11 {deserves consideration.}) 27. Nbd4 {[%emt 0:01:08]} Rhd8 {[%emt 0:01:02]} 28. Nxf5 {[%emt 0:00:29]} Bxf5 {[%emt 0:00:07]} 29. Nd4 {[%emt 0:02:01] Threatens to win with Nxf5.} Bg4 {[%emt 0:00:24]} 30. Bxg4 {[%emt 0:01:26]} hxg4 {[%emt 0:00:01]} 31. Re2 {[%emt 0:00:06]} Nxd4 {[%emt 0:02:09]} 32. Rxd4 $11 {[%emt 0:00:02][%mdl 4096] Endgame. KRR-KRR} Kc6 {[%emt 0:00:43]} 33. Re7 {[%emt 0:01:27]} R6d7 {[%emt 0:00:32]} 34. Rxd7 {[%emt 0:02:13]} Rxd7 {[%emt 0:00:03] KR-KR} 35. f5 {[%emt 0:00:01]} gxf5 {[%emt 0:00:58]} 36. Rf4 {[%emt 0:00:01]} Re7 {[%emt 0:01:29]} 37. Rxf5 {[%emt 0:00:03]} Re1+ {[%emt 0:00:10]} 38. Kd2 {[%emt 0:04:02]} Rh1 {[%emt 0:00:17]} 39. Rf6+ {[%emt 0:01:37]} Kc5 {[%emt 0:00:09]} 40. Kd3 {[%emt 0:00:04]} Rxh2 {[%emt 0:00:48]} 41. b4+ {[%emt 0:00:22]} Kb5 {[%emt 0:00:00]} 42. Rxf7 {[%emt 0:00:01]} Rg2 {[%emt 0:01:32]} 43. Rxb7+ {[%emt 0:00:23]} Kc6 {[%emt 0:00:01]} 44. Rg7 {[%emt 0:00:23] a4 is the strong threat.} Rxg3+ {[%emt 0:00:02]} 45. Kd4 {[%emt 0:00:02] a4 would now be deadly.} Rg1 $1 {[%emt 0:00:44]} 46. Rg6+ {[%emt 0:00:24]} Kb5 {[%emt 0:00:17]} 47. Kxd5 {[%emt 0:00:53][%cal Oa2a4] Hoping for a4+!} g3 $2 {[%emt 0:00:27][%mdl 8192] [#]} (47... a5 $11) 48. a4+ $1 {[%emt 0:00:31][%mdl 512]} Kxa4 {[%emt 0:00:04]} 49. Kc4 $1 {[%emt 0:00:01][%cal Rg6a6]} Ka3 {[%emt 0:00:48]} 50. Rxa6+ {[%emt 0:00:03]} Kb2 {[%emt 0:00:02]} 51. Rg6 {[%emt 0:00:03] White mates.} Ka3 {[%emt 0:00:32]} 52. b5 {[%emt 0:00:15][%cal Bb4b5,Bb5b6][%mdl 32]} g2 {[%emt 0:00:06]} 53. Rg8 {[%emt 0:00:31]} Ka2 {[%emt 0:00:05]} 54. b6 {[%emt 0:00:05]} Ka3 {[%emt 0:00:07] Weighted Error Value: White=0.07 (flawless) /Black=0.22 (precise) .  Loses game:     	---       	Black=2      Mistake:       	White=2     	Black=1      Inaccurate:     	White=1     	Black=2      OK:         	White=19    	Black=19     Best:        	White=2     	Black=4      Strong:       	---       	Black=1      Brilliant:      	White=1     	---} 1-0

[Event "7th Salamanca Festival 2024"]
[Site "Salamanca"]
[Date "2024.05.22"]
[Round "2.1"]
[White "Calzetta Ruiz, Monica"]
[Black "Muzychuk, Mariya"]
[Result "0-1"]
[ECO "B13"]
[WhiteElo "2244"]
[BlackElo "2510"]
[Annotator "TA"]
[PlyCount "44"]
[EventDate "2024.05.18"]
[EventType "tourn"]
[EventCountry "ESP"]
[SourceTitle "playchess.com"]
[Source "ChessBase"]
[SourceQuality "1"]
[TimeControl "2400+5"]

{[%evp 16,44,0,-10,-16,0,0,0,0,-21,-14,-129,-147,-138,-142,-146,-157,-140,-138,-352,-354,-366,-355,-401,-406,-463,-463,-570,-578,-1250,-568]} 1. e4 {[%emt 0:00:04]} c6 {[%emt 0:00:01]} 2. d4 {[%emt 0:00:03]} d5 {[%emt 0:00:01]} 3. exd5 {[%emt 0:00:07]} cxd5 {[%emt 0:00:02]} 4. c4 {[%emt 0:00:04]} Nf6 {[%emt 0:00:05]} 5. Nc3 {[%emt 0:00:03]} Nc6 {[%emt 0:00:05]} 6. Bg5 {[%emt 0:03:25]} Be6 {[%emt 0:00:08]} 7. Nf3 {[%emt 0:01:11]} g6 {[%emt 0:00:09]} 8. Bxf6 {[%emt 0:07:13]} exf6 {[%emt 0:00:02][%cal Be7f6,Bf6f5,Bf5g4][%mdl 32]} 9. c5 {[%emt 0:00:25]} Bg7 {[%emt 0:00:11]} 10. Be2 {[%emt 0:00:23]} O-O {[%emt 0:00:25]} 11. O-O {[%emt 0:00:21]} g5 {[%emt 0:01:37] The position is equal.} 12. h3 {[%emt 0:01:38]} f5 {[%emt 0:00:44] Threatening ...g4.} 13. Re1 {[%emt 0:05:32]} (13. Bb5 $11) 13... g4 $17 {[%emt 0:08:50]} 14. hxg4 {[%emt 0:00:37]} fxg4 {[%emt 0:00:00]} 15. Ne5 {[%emt 0:00:12]} Nxe5 {[%emt 0:03:22]} 16. dxe5 {[%emt 0:00:03]} Qg5 {[%emt 0:00:10]} (16... Bxe5 17. Bxg4 Qg5 18. Bxe6 fxe6 19. Re2 (19. Nxd5 $2 Rad8 $19)) 17. Nxd5 $2 {[%emt 0:05:45]} (17. g3 $17) 17... Rad8 $19 {[%emt 0:00:54]} ({Less strong is} 17... Qxe5 18. Bc4 Qxb2 19. Rb1 $15) ({Don't do} 17... Bxe5 18. Qc1 Qxc1 19. Ne7+ Kg7 20. Raxc1 $19) 18. Bc4 {[%emt 0:00:08]} Bxe5 {[%emt 0:01:12]} 19. Qc1 {[%emt 0:07:28] [#]} Qg7 {[%emt 0:05:00]} 20. Ne7+ {[%emt 0:05:16]} Kh8 {[%emt 0:00:01] Black is clearly winning.} 21. Bxe6 {[%emt 0:00:02]} fxe6 {[%emt 0:01:12]} 22. Rb1 {[%emt 0:01:10]} Bf6 {[%emt 0:01:15] Black took control after the opening.   Weighted Error Value: White=0.90/Black=0.00 (flawless) .  Loses game:     	White=1     	---        Mistake:       	White=1     	Black=1      Inaccurate:     	White=1     	---        OK:         	White=5     	Black=7      Best:        	---       	Black=1} (22... Bd4 $142 23. c6 Bxf2+ (23... Qxe7 $2 24. Re3 $19) 24. Kh1 Qf6 (24... Qxe7 $2 25. Qh6 $19) (24... Bxe1 $2 25. Qxe1 Qxe7 26. Qe5+ Qg7 27. Qxg7+ Kxg7 28. c7 $19)) 0-1